Cogmind - Beta 9.1 @@@ ROGUE MODE // 2019.11.01 @ 19:37:14 Player: arsonius Result: Destroyed by B-75 Beast with Heavy Machine Gun Performance ------------- Evolutions (5) 2500 Regions Visited (16) 3200 Robots Destroyed (77) 385 Value Destroyed (3861) 3861 Prototype IDs (52) 1040 Alien Tech Used (0) 0 Bonus (2750) 2750 TOTAL SCORE: 13736 Bonus ------- High Alert Combat Kills 62 Follower Combat Kills 812 Entered Garrisons 400 Used RIF Installer 1000 Aligned with FarCom 300 Met Data Miner 300 Friendly Fire -124 Cogmind --------- Core Integrity 0/1000 Matter 300/300 Energy 1690/1690 System Corruption 9% Temperature Cool (12) Location -5/Extension Parts ------- Power (1) Reinforced Deuterium Engine Propulsion (4) Improved Medium Treads Carbon-fiber Leg Carbon-fiber Leg Utility (10) Thermal Converter Compact Battery Compact Battery Advanced Energy Well Advanced Signal Interpreter Terrain Scan Processor Targeting Computer Layered Medium Armor Plating Component Analysis Suite Dynamic Insulation System Weapon (2) Chainsword Inventory (4) Magnetic Acceleration Cannon Remote Datajack Peak State ------------ Power Micro Fission Core Propulsion Cooled Airjet Antigrav System Antigrav System Antigrav System Utility Advanced Cooling System Large Storage Unit Advanced Signal Interpreter Transmission Jammer Weapon Shielding Improved Focal Shield Relay Coupler [NC] Component Analysis Suite System Backup Module Mini Drone Bay Weapon High-powered Shock Rifle Mass Driver Inventory Light Angular Momentum Engine Improved Carbon-fiber Leg Flexi-carbon Leg Armored Leg Armored Leg Enhanced Flexi-carbon Leg Medium Matter Pod Advanced Weight Redist. System High-powered Shock Rifle Remote Datajack [Rating: 79] Favorites ----------- Power Light Angular Momentum Engine Engine Light Angular Momentum Engine Power Core Micro Fission Core Reactor Light Antimatter Reactor Propulsion Carbon-fiber Leg Treads Improved Medium Treads Leg Carbon-fiber Leg Wheel Armored Huge Wheel Hover Unit Antigrav System Flight Unit Flying Fortress v7 Utility Advanced Signal Interpreter Device Component Analysis Suite Storage Large Storage Unit Processor Advanced Signal Interpreter Hackware Relay Coupler [NC] Protection Hardened Medium Armor Plating Weapon Enhanced Autogun Energy Gun High-powered Shock Rifle Energy Cannon Plasma Cannon Ballistic Gun Enhanced Autogun Ballistic Cannon Advanced Assault Cannon Launcher Rocket Array Special Weapon Remote Datajack Slashing Weapon Chainsword Special Melee Weapon Improved Datajack Build | -11 -10 -10 -10 -9 -8 -7 -7 -7 -7 -7 -7 -6 -6 -6 -5 -5 ------- Run | Scr Mat Min Exi Min Mat Fac Gar Fac Low Low Dat Pro Fac Gar Fac Ext Slots Evolved 10 | . . . . . 4 2 . . . . . . 2 . 2 . Power . | . . . . . . . . . . . . . . . . . Propulsion 2 | . . . . . 2 . . . . . . . . . . . Utility 8 | . . . . . 2 2 . . . . . . 2 . 2 . Weapon . | . . . . . . . . . . . . . . . . . Parts Attached 185 | 4 5 3 1 3 10 5 6 18 7 . . 15 12 16 34 46 Power 17 | 1 . . . 2 2 . . 2 . . . 1 1 1 2 5 Engine 14 | 1 . . . 2 1 . . 2 . . . 1 1 1 1 4 Core 2 | . . . . . 1 . . . . . . . . . 1 . Reactor 1 | . . . . . . . . . . . . . . . . 1 Propulsion 47 | 2 2 1 . . 1 . . . . . . 4 5 1 13 18 Treads 2 | . . . . . . . . . . . . . . . . 2 Leg 25 | 2 . . . . . . . . . . . . 4 1 5 13 Wheel 2 | . . . . . . . . . . . . . . . 2 . Hover 6 | . . . . . . . . . . . . . . . 5 1 Flight 12 | . 2 1 . . 1 . . . . . . 4 1 . 1 2 Utility 71 | 1 2 1 1 . 3 4 4 11 2 . . 8 3 6 10 15 Device 32 | . . . . . . 1 . 7 1 . . 7 1 1 8 6 Storage 13 | 1 2 . 1 . 2 . . 2 . . . . 1 . . 4 Processor 3 | . . 1 . . . . . . . . . . . . . 2 Hackware 9 | . . . . . . . 3 . . . . . . 5 1 . Protection 14 | . . . . . 1 3 1 2 1 . . 1 1 . 1 3 Artifact . | . . . . . . . . . . . . . . . . . Weapon 50 | . 1 1 . 1 4 1 2 5 5 . . 2 3 8 9 8 Energy Gun 12 | . . . . . . . . 1 1 . . . . 3 4 3 Energy Cannon 2 | . . . . . . . . . . . . . 1 . . 1 Ballistic Gun 10 | . 1 . . 1 3 1 1 . 1 . . 1 . . . 1 Ballistic Cannon 8 | . . . . . 1 . . 2 1 . . . 1 2 1 . Launcher 1 | . . . . . . . . . 1 . . . . . . . Special Weapon 12 | . . . . . . . . 1 1 . . 1 1 3 3 2 Impact Weapon . | . . . . . . . . . . . . . . . . . Slashing Weapon 2 | . . . . . . . . . . . . . . . 1 1 Piercing Weapon . | . . . . . . . . . . . . . . . . . Special Melee Weapon 3 | . . 1 . . . . 1 1 . . . . . . . . Unidentified Prototypes 5 | . . . . . 2 . . . 1 . . . . . 1 1 Parts Lost 48 | . . . . 1 . . . . 3 . . 5 . . 22 17 Power 3 | . . . . 1 . . . . . . . . . . . 2 Propulsion 17 | . . . . . . . . . . . . 1 . . 12 4 Utility 16 | . . . . . . . . . 1 . . 1 . . 7 7 Weapon 12 | . . . . . . . . . 2 . . 3 . . 3 4 Highest Loss Streak 16 | . . . . 1 . . . . 2 . . 3 . . 16 5 Average Slot Usage (%) 80 | . 67 96 100 99 69 76 75 76 74 76 76 86 90 91 75 80 Engine 5 | . 14 14 14 13 2 7 7 7 7 7 7 7 6 6 . 3 Leg 7 | . 7 . . . . . . . . . . . 15 26 12 15 Flight 6 | . 19 28 28 28 9 7 7 7 7 7 7 22 10 . . . Device 12 | . . . . . . 6 1 6 7 7 7 27 34 13 17 22 Storage 9 | . 14 14 14 14 17 15 15 15 15 15 15 4 1 6 3 4 Processor 8 | . . 12 14 14 9 7 7 7 7 7 7 7 6 6 5 12 Hackware 4 | . . . . . . . 5 7 7 7 7 2 . 10 6 . Protection 5 | . . . . . 7 15 14 7 7 7 7 1 3 6 3 4 Energy Gun 1 | . . . . . . . . . . 7 7 . . 2 4 3 Ballistic Gun 4 | . 11 14 14 14 16 15 11 . 2 . . 4 2 . . . Ballistic Cannon 1 | . . . . . . . . 6 4 . . . . 2 1 . Special Weapon 1 | . . . . . . . . 3 . . . 1 2 3 2 . Slashing Weapon 1 | . . . . . . . . . . . . . . . . 5 Special Melee Weapon 1 | . . 12 14 14 . . 3 3 . . . . . . . . Naked Turns . | . . . . . . . . . . . . . . . . . Heaviest Build 70 | 9 13 11 15 15 48 53 56 70 70 70 70 70 65 65 55 45 Greatest Support 80 | 20 20 11 11 11 72 72 72 72 72 72 72 72 68 70 80 60 Greatest Overweight (x) 4 | 2 1 . 1 4 . . . . . . . . . . 2 2 Average Overweight (x) . | . . . . 1 . . . . . . . . . . . . Largest Inventory Capacity 16 | 6 10 6 8 8 14 14 14 16 16 16 16 16 10 10 10 4 Average Capacity 10 | 5 6 6 7 8 13 14 14 15 16 16 16 7 5 10 8 4 Most Carried 16 | 6 7 6 8 8 14 14 14 16 16 16 16 16 10 10 10 4 Average Carried 9 | 3 5 5 7 7 13 13 13 15 15 15 16 7 4 9 7 3 Final Capacity 16 | 6 6 6 8 8 14 14 14 16 16 16 16 4 10 10 4 4 Final Carried 16 | 6 6 6 8 8 14 14 14 16 16 16 16 4 10 10 4 2 Class Distribution -------------------- 70% | Mutant 10% | Scavenger-Mutant 9% | Bothacker-Mutant 5% | Scavenger-Assassin 3% | Sprinter Dominant Class ---------------- Mutant | -10/Materials Mutant | -10/Mines Mutant | -10/Exiles Mutant | -9/Mines Mutant | -8/Materials Mutant | -7/Factory Mutant | -7/Garrison Mutant | -7/Factory Mutant | -7/Lower Caves Mutant | -7/Lower Caves Mutant | -7/Data Miner Sprinter | -6/Proximity Caves Mutant | -6/Factory Bothacker-Mutant | -6/Garrison Mutant | -5/Factory Scavenger-Mutant | -5/Extension Resources | -11 -10 -10 -10 -9 -8 -7 -7 -7 -7 -7 -7 -6 -6 -6 -5 -5 ----------- Run | Scr Mat Min Exi Min Mat Fac Gar Fac Low Low Dat Pro Fac Gar Fac Ext Matter Collected 2879 | 178 . 30 122 40 201 . 183 190 225 53 . 179 71 450 327 630 Remotely . | . . . . . . . . . . . . . . . . . Salvage Created 2790 | . . . . 47 . . . 40 167 309 . 424 42 795 79 887 Parts 110 | . . . . 8 . . . 6 12 9 . 8 6 21 7 33 Haulers Intercepted . | . . . . . . . . . . . . . . . . . Recyclers Shooed 2 | . . . . 1 . . . . . . . . . . . 1 Parts Field Recycled . | . . . . . . . . . . . . . . . . . Retrieved Matter . | . . . . . . . . . . . . . . . . . Parts Self-Destructed 25 | . . . . . . . . . 9 7 . 9 . . . . Prevented 6 | . . . . . . . . . 6 . . . . . . . Kills | -11 -10 -10 -10 -9 -8 -7 -7 -7 -7 -7 -7 -6 -6 -6 -5 -5 ------- Run | Scr Mat Min Exi Min Mat Fac Gar Fac Low Low Dat Pro Fac Gar Fac Ext Combat Hostiles Destroyed 75 | . . . . 3 . . . 1 10 13 . 17 1 13 1 16 Melee 6 | . . . . . . . . . . . . . . . . 6 Guns 16 | . . . . 3 . . . 1 . . . 1 . 3 . 8 Cannons 10 | . . . . . . . . . 3 . . . 1 4 1 1 AOE 38 | . . . . . . . . . 7 13 . 16 . 2 . . Classes Destroyed 11 | . . . . 1 . . . 1 1 2 . 1 . . 1 4 Worker 1 | . . . . . . . . . . . . . . . 1 . Recycler 1 | . . . . . . . . . . . . . . . . 1 Drone 1 | . . . . . . . . . . . . . . . . 1 Swarmer 26 | . . . . 3 . . . . 9 4 . 3 . . . 7 Grunt 30 | . . . . . . . . . 1 5 . 11 . 9 . 4 Brawler 1 | . . . . . . . . . . . . 1 . . . . Duelist 4 | . . . . . . . . . . 3 . 1 . . . . Sentry 6 | . . . . . . . . . . 1 . 1 . 3 . 1 Hunter 1 | . . . . . . . . . . . . . . . . 1 Programmer 5 | . . . . . . . . 1 . . . . 1 1 1 1 Behemoth 1 | . . . . . . . . . . . . . . . . 1 Best Kill Streak 10 | . . . . 3 . . . 1 4 9 . 10 1 3 2 3 Combat Bots Only 10 | . . . . 3 . . . 1 4 9 . 10 1 3 1 3 Max Kills in Single Turn 6 | . . . . 1 . . . 1 4 6 . 5 1 1 1 1 Gunslinging . | . . . . . . . . . . . . . . . . . Exploded 6 | . . . . . . . . . 4 6 . 5 . 1 . . Melee 1 | . . . . . . . . . . . . . . . . 1 Uniques/NPCs Destroyed . | . . . . . . . . . . . . . . . . . Combat | -11 -10 -10 -10 -9 -8 -7 -7 -7 -7 -7 -7 -6 -6 -6 -5 -5 -------- Run | Scr Mat Min Exi Min Mat Fac Gar Fac Low Low Dat Pro Fac Gar Fac Ext Damage Taken 10190 | . 40 29 . 223 376 . 543 212 1263 194 . 644 . 1180 3070 2416 Core 1735 | . 16 23 . 87 83 . 59 . 176 . . 188 . 102 659 342 Absorbed by Shields 202 | . . . . . . . 25 . . . . . . . . 177 Core Remaining (%) 72 | 100 . . . 49 84 . . . . . . 39 . 88 . . Volleys Fired 242 | . . . . 15 . . 4 9 23 4 . 10 1 85 50 41 Largest 2 | . . . . 1 . . 2 1 1 2 . 1 1 2 1 1 Hottest 114 | . . . . 20 . . 50 30 48 114 . 45 80 113 60 98 Shots Fired 253 | . . . . 15 . . 6 9 23 5 . 10 1 90 49 45 Gun 141 | . . . . 15 . . 6 4 . 1 . 2 . 44 30 39 Cannon 69 | . . . . . . . . . 20 . . . 1 34 9 5 Launcher 14 | . . . . . . . . . 2 4 . 8 . . . . Special 29 | . . . . . . . . 5 1 . . . . 12 10 1 Kinetic 59 | . . . . 15 . . 6 . 20 . . 2 . 5 9 2 Thermal 57 | . . . . . . . . 4 . 1 . . 1 29 . 22 Explosive 14 | . . . . . . . . . 2 4 . 8 . . . . Electromagnetic 94 | . . . . . . . . . . . . . . 44 30 20 Robot Hit Streak 16 | . . . . 4 . . . 4 3 5 . 8 3 10 16 6 Robot Miss Streak 9 | . . . . 5 . . . 2 9 3 . 4 . 3 5 2 Penetration Max . | . . . . . . . . . . . . . . . . . Secondary Targets . | . . . . . . . . . . . . . . . . . Shots Hit Robots 193 | . . 3 . 8 . . 3 9 12 4 . 9 1 58 37 49 Core Hits 192 | . . . . 4 . . . 2 12 44 . 74 1 17 12 26 Critical Hits 9 | . . . . . . . . . 1 . . 1 . . . 7 Critical Kills 2 | . . . . . . . . . . . . . . . . 2 Critical Parts Destroyed 3 | . . . . . . . . . 1 . . . . . . 2 Melee Attacks 44 | . . 3 . . . . 4 4 . . . . . . . 33 Impact . | . . . . . . . . . . . . . . . . . Slashing 33 | . . . . . . . . . . . . . . . . 33 Piercing . | . . . . . . . . . . . . . . . . . Sneak Attacks 13 | . . 3 . . . . 1 3 . . . . . . . 6 Combat Hostiles 3 | . . . . . . . 1 . . . . . . . . 2 Follow-up Attacks . | . . . . . . . . . . . . . . . . . Damage Inflicted 8283 | . . . . 69 . . . 73 707 1175 . 2146 30 1693 386 2004 Guns 1633 | . . . . 68 . . . 73 . . . 27 . 758 117 590 Cannons 1291 | . . . . . . . . . 365 . . . 30 547 251 98 Explosions 4024 | . . . . . . . . . 342 1175 . 2119 . 388 . . Melee 1316 | . . . . . . . . . . . . . . . . 1316 Ramming 19 | . . . . 1 . . . . . . . . . . 18 . Kinetic 859 | . . . . 68 . . . . 365 . . 27 . 123 251 25 Thermal 1263 | . . . . . . . . 73 . . . . 30 812 . 348 Explosive 3636 | . . . . . . . . . 342 1175 . 2119 . . . . Electromagnetic 1190 | . . . . . . . . . . . . . . 758 117 315 Impact . | . . . . . . . . . . . . . . . . . Slashing 1316 | . . . . . . . . . . . . . . . . 1316 Piercing . | . . . . . . . . . . . . . . . . . Highest Corruption 15 | . . . . . 3 . . 1 1 1 1 1 . . 15 12 Average Corruption 5 | . . . . . 2 . . 1 1 1 1 1 . . 11 8 Corruption Purged 14 | . . . . . . . . 1 . . . 1 . . 6 6 Effects 127 | . . . . . 10 . . 2 2 1 . 2 . . 28 82 Message Errors 29 | . . . . . 4 . . 1 . 1 . 1 . . 6 16 Matter Fused 27 | . . . . . 1 . . . . . . . . . 3 23 Heat Flow Errors 13 | . . . . . . . . . . . . . . . 4 9 Energy Discharges 20 | . . . . . 2 . . 1 . . . 1 . . 5 11 Parts Rejected 1 | . . . . . . . . . . . . . . . 1 . Data Loss (minor) 10 | . . . . . 3 . . . . . . . . . . 7 Data Loss (major) 2 | . . . . . . . . . . . . . . . . 2 Misfires 4 | . . . . . . . . . . . . . . . . 4 Misdirections 9 | . . . . . . . . . . . . . . . 8 1 Targeting Errors 11 | . . . . . . . . . 2 . . . . . . 9 Weapon Failures 1 | . . . . . . . . . . . . . . . 1 . Overload Shots . | . . . . . . . . . . . . . . . . . Overflow Damage 227 | . . . . . . . . . 2 12 . 10 . 32 . 171 Projectiles 7 | . . . . . . . . . 2 . . . . 5 . . Explosions 49 | . . . . . . . . . . 12 . 10 . 27 . . Melee 171 | . . . . . . . . . . . . . . . . 171 Knockbacks 13 | . . . . . . . . . 4 . . . . 5 4 . Impact . | . . . . . . . . . . . . . . . . . Kinetic 11 | . . . . . . . . . 4 . . . . 3 4 . Secondary 2 | . . . . . . . . . . . . . . 2 . . Self-Inflicted Damage 79 | . . . . . . . . . . . . 71 . . 8 . Shots 4 | . . . . . . . . . . . . 4 . . . . Rammed 5 | . . . . 1 . . . . . . . . . . 4 . Targets Rammed 5 | . . . . 1 . . . . . . . . . . 4 . Kicked . | . . . . . . . . . . . . . . . . . Crushed . | . . . . . . . . . . . . . . . . . Highest Temperature 315 | . . . . . 9 . 46 31 276 78 . 34 30 315 256 243 Average Temperature 71 | . . . . . 8 . 13 10 111 39 . 21 18 76 95 62 Received Heat Transfer 1613 | . . . . . 117 . 93 45 303 81 . 171 . 396 102 305 Siege Activations . | . . . . . . . . . . . . . . . . . Robots Corrupted 5 | . . . . . . . . . . . . . . 4 . 1 Combat Hostiles 5 | . . . . . . . . . . . . . . 4 . 1 Parts Fried 3 | . . . . . . . . . . . . . . 3 . . Impact Corruptions . | . . . . . . . . . . . . . . . . . Robots Melted . | . . . . . . . . . . . . . . . . . Combat Hostiles . | . . . . . . . . . . . . . . . . . Parts Melted 5 | . . . . . . . . . . . . . . 3 . 2 Heat Transferred 1755 | . . . . . . . . 111 . . . . 50 1074 . 520 Parts Sabotaged . | . . . . . . . . . . . . . . . . . Parts Stolen . | . . . . . . . . . . . . . . . . . Parts Stripped . | . . . . . . . . . . . . . . . . . Power Chain Reactions 5 | . . . . . . . . . . . . . . 5 . . Missiles Intercepted . | . . . . . . . . . . . . . . . . . Alert | -11 -10 -10 -10 -9 -8 -7 -7 -7 -7 -7 -7 -6 -6 -6 -5 -5 ------- Run | Scr Mat Min Exi Min Mat Fac Gar Fac Low Low Dat Pro Fac Gar Fac Ext Peak Influence 458 | . 33 12 . 60 36 53 104 458 . . . . 113 452 284 369 Average Influence 137 | . 20 12 . 53 17 30 71 181 . . . . 104 273 109 161 Maximum Alert Level 2 | . . . . . . . . 2 . . . . . 2 1 1 Low Security (%) 69 | . . . . . . . . . . . . . . . . . Level 1 25 | . . . . . . . . . . . . . . . . . Level 2 5 | . . . . . . . . . . . . . . . . . Level 3 . | . . . . . . . . . . . . . . . . . Level 4 . | . . . . . . . . . . . . . . . . . Level 5 . | . . . . . . . . . . . . . . . . . High Security . | . . . . . . . . . . . . . . . . . Max Security . | . . . . . . . . . . . . . . . . . Squads Dispatched 18 | . . . . . 3 2 . 4 . 1 . . 1 . 5 2 Investigation 7 | . . . . . 2 1 . 2 . . . . . . 1 1 Extermination 5 | . . . . . . 1 . 2 . . . . 1 . 1 . Reinforcement 5 | . . . . . 1 . . . . . . . . . 3 1 Assault 1 | . . . . . . . . . . 1 . . . . . . Garrison . | . . . . . . . . . . . . . . . . . Intercept . | . . . . . . . . . . . . . . . . . Construction Impeded 2 | . . . . . . . . . . . . . . . 1 1 Haulers Reinforced . | . . . . . . . . . . . . . . . . . Stealth | -11 -10 -10 -10 -9 -8 -7 -7 -7 -7 -7 -7 -6 -6 -6 -5 -5 --------- Run | Scr Mat Min Exi Min Mat Fac Gar Fac Low Low Dat Pro Fac Gar Fac Ext Distress Signals 8 | . . . . . 1 . . 3 . . . . . . . 4 Communications Jammed 1 | . . . . . . . . . . . . . . . 1 . Distress Signals 1 | . . . . . . . . . . . . . . . 1 . Times Spotted 230 | . 11 3 . 3 15 . 13 10 43 12 . 17 1 27 30 45 Peak Tracking Total 12 | . 8 3 . 3 12 1 11 5 9 7 . 6 1 6 10 6 Tactical Retreats 43 | . 2 1 . . 1 . . 2 11 . . 4 . 8 7 7 Traps | -11 -10 -10 -10 -9 -8 -7 -7 -7 -7 -7 -7 -6 -6 -6 -5 -5 ------- Run | Scr Mat Min Exi Min Mat Fac Gar Fac Low Low Dat Pro Fac Gar Fac Ext Traps Triggered 15 | . . . . . 2 . 5 2 . . . . . 5 1 . Indirectly . | . . . . . . . . . . . . . . . . . Trap Hack Attempts . | . . . . . . . . . . . . . . . . . Triggered . | . . . . . . . . . . . . . . . . . Disarmed 4 | . 4 . . . . . . . . . . . . . . . Reprogrammed . | . . . . . . . . . . . . . . . . . Reused . | . . . . . . . . . . . . . . . . . Traps Extracted . | . . . . . . . . . . . . . . . . . Installed . | . . . . . . . . . . . . . . . . . Triggered 6 | . . . . . . . . . 3 3 . . . . . . Machines | -11 -10 -10 -10 -9 -8 -7 -7 -7 -7 -7 -7 -6 -6 -6 -5 -5 ---------- Run | Scr Mat Min Exi Min Mat Fac Gar Fac Low Low Dat Pro Fac Gar Fac Ext Machines Disabled 5 | . . . . . . . 2 . . . . . . 2 . 1 Max in Single Turn 1 | . . . . . . . 1 . . . . . . 1 . 1 Garrison Relay 3 | . . . . . . . 1 . . . . . . 2 . . Machines Sabotaged . | . . . . . . . . . . . . . . . . . Garrisons Compromised . | . . . . . . . . . . . . . . . . . Overloaded Fab Kills . | . . . . . . . . . . . . . . . . . Fab Network Shutdowns 1 | . . . . . . . . 1 . . . . . . . . Hacking | -11 -10 -10 -10 -9 -8 -7 -7 -7 -7 -7 -7 -6 -6 -6 -5 -5 --------- Run | Scr Mat Min Exi Min Mat Fac Gar Fac Low Low Dat Pro Fac Gar Fac Ext Machines Accessed 51 | . 2 1 1 . 10 7 . 11 2 . 4 1 3 . 8 1 Terminals 26 | . 2 . . . 5 3 . 5 1 . . 1 1 . 7 1 Fabricators 4 | . . . . . . 1 . 2 . . . . . . 1 . Repair Stations 4 | . . . . . 1 1 . 1 . . . . 1 . . . Recycling Units 4 | . . . . . 2 1 . 1 . . . . . . . . Scanalyzers 4 | . . . . . 2 . . 2 . . . . . . . . Garrison Access 2 | . . . . . . 1 . . . . . . 1 . . . Total Hacks 184 | . 10 1 1 . 56 22 . 29 8 . 28 3 4 . 20 2 Successful 131 | . 6 1 1 . 46 13 . 17 6 . 28 3 1 . 9 . Failed 53 | . 4 . . . 10 9 . 12 2 . . . 3 . 11 2 Catastrophic 9 | . 1 . . . . 2 . 3 1 . . . 1 . 1 . Database Lockouts . | . . . . . . . . . . . . . . . . . Manual 22 | . 3 . 1 . 4 2 . 3 3 . . . 2 . 4 . Terminals 89 | . 10 . . . 17 15 . 14 7 . . 3 2 . 19 2 Fabricators 8 | . . . . . . 1 . 6 . . . . . . 1 . Repair Stations 14 | . . . . . 9 1 . 3 . . . . 1 . . . Recycling Units 32 | . . . . . 26 4 . 2 . . . . . . . . Scanalyzers 8 | . . . . . 4 . . 4 . . . . . . . . Garrison Access 2 | . . . . . . 1 . . . . . . 1 . . . Terminal Hacks 78 | . 6 1 1 . 10 9 . 6 6 . 28 3 . . 8 . Record 24 | . 1 . . . 1 3 . . 4 . 11 3 . . 1 . Part Schematic 8 | . . . . . . . . . . . 7 . . . 1 . Robot Schematic 7 | . . . . . . . . . . . 7 . . . . . Prototype ID Bank 6 | . . . . . 1 1 . . . . 3 . . . 1 . Open Door 3 | . . 1 . . . . . . 1 . . . . . 1 . Branch Access Points 3 | . 1 . . . 1 . . . . . . . . . 1 . Emergency Access Points 2 | . . . . . 1 1 . . . . . . . . . . Alert Level 2 | . . . . . 1 1 . . . . . . . . . . Locate Traps 7 | . 1 . . . 2 . . 3 1 . . . . . . . Disarm Traps 1 | . 1 . . . . . . . . . . . . . . . Dispatch Records 1 | . . . . . . 1 . . . . . . . . . . Security Status 1 | . 1 . . . . . . . . . . . . . . . Surveillance Status 2 | . 1 . . . 1 . . . . . . . . . . . Patrol Status 2 | . . . . . . . . 1 . . . . . . 1 . Recall Investigation 1 | . . . . . 1 . . . . . . . . . . . Recall Extermination 1 | . . . . . . . . 1 . . . . . . . . Hauler Manifests 1 | . . . . . . 1 . . . . . . . . . . Zone Layout 5 | . . . . . 1 1 . 1 . . . . . . 2 . EX-Prototype ID Bank 1 | . . . 1 . . . . . . . . . . . . . Fabricator Hacks 4 | . . . . . . . . 4 . . . . . . . . Network Status 1 | . . . . . . . . 1 . . . . . . . . Load Schematic 1 | . . . . . . . . 1 . . . . . . . . Build 2 | . . . . . . . . 2 . . . . . . . . Repair Station Hacks 10 | . . . . . 8 . . 2 . . . . . . . . Scan Component 5 | . . . . . 4 . . 1 . . . . . . . . Repair 5 | . . . . . 4 . . 1 . . . . . . . . Recycling Unit Hacks 27 | . . . . . 24 2 . 1 . . . . . . . . Process 21 | . . . . . 20 1 . . . . . . . . . . Report Inventory 5 | . . . . . 3 1 . 1 . . . . . . . . Retrieve Components 1 | . . . . . 1 . . . . . . . . . . . Scanalyzer 7 | . . . . . 4 . . 3 . . . . . . . . Insert Component 3 | . . . . . 2 . . 1 . . . . . . . . Analyze 4 | . . . . . 2 . . 2 . . . . . . . . Garrison Access Hacks 2 | . . . . . . 1 . . . . . . 1 . . . Unlock Access 2 | . . . . . . 1 . . . . . . 1 . . . Unauthorized Hacks 11 | . . . . . . 2 . 2 1 . . . 2 . 4 . Terminals 1 | . . . . . . . . . . . . . . . 1 . Assimilate 1 | . . . . . . . . . . . . . . . 1 . Fabricators 2 | . . . . . . 1 . 1 . . . . . . . . Download 2 | . . . . . . 1 . 1 . . . . . . . . Repair Stations . | . . . . . . . . . . . . . . . . . Recycling Units . | . . . . . . . . . . . . . . . . . Scanalyzers . | . . . . . . . . . . . . . . . . . Garrison Access . | . . . . . . . . . . . . . . . . . Data Cores Recovered . | . . . . . . . . . . . . . . . . . Used . | . . . . . . . . . . . . . . . . . Hacking Detections 38 | . 2 . . . 10 5 . 9 1 . . 1 2 . 7 1 Full Trace Events 5 | . . . . . 2 . . 1 . . . . . . 1 1 Feedback Events 2 | . . . . . 1 . . . . . . . . . . 1 Corruption 2 | . . . . . 1 . . . . . . . . . . 1 Feedback Blocked . | . . . . . . . . . . . . . . . . . Robot Schematics Acquired 8 | . . . . . . 1 . . . . 7 . . . . . Robots Built . | . . . . . . . . . . . . . . . . . Matter . | . . . . . . . . . . . . . . . . . Time . | . . . . . . . . . . . . . . . . . Total Robot Build Rating . | . . . . . . . . . . . . . . . . . Part Schematics Acquired 11 | . . . . . 2 . . 1 . . 7 . . . 1 . Parts Built 2 | . . . . . . . . 2 . . . . . . . . Matter 168 | . . . . . . . . 168 . . . . . . . . Time 42 | . . . . . . . . 42 . . . . . . . . Total Part Build Rating 8 | . . . . . . . . 8 . . . . . . . . Parts Repaired 5 | . . . . . 4 . . 1 . . . . . . . . Time 141 | . . . . . 122 . . 19 . . . . . . . . Parts Recycled . | . . . . . . . . . . . . . . . . . Recycled Matter 14 | . . . . . . 14 . . . . . . . . . . Retrieved Matter . | . . . . . . . . . . . . . . . . . Retrieved Components 3 | . . . . . 3 . . . . . . . . . . . Parts Scanalyzed 3 | . . . . . 2 . . 1 . . . . . . . . Part Schematics Acquired 3 | . . . . . 2 . . 1 . . . . . . . . Parts Damaged . | . . . . . . . . . . . . . . . . . Bothacking | -11 -10 -10 -10 -9 -8 -7 -7 -7 -7 -7 -7 -6 -6 -6 -5 -5 ------------ Run | Scr Mat Min Exi Min Mat Fac Gar Fac Low Low Dat Pro Fac Gar Fac Ext Used RIF Installer 2 | . . . . . . . 1 . . . . . . 1 . . Program Shield 1 | . . . . . . . . . . . . . . 1 . . Robots Hacked 24 | . . 2 . . . . 2 4 1 . . . . 8 6 1 Non-combat 10 | . . 2 . . . . . 3 . . . . . . 5 . Combat 14 | . . . . . . . 2 1 1 . . . . 8 1 1 Robot Hacks Applied 27 | . . 2 . . . . 3 5 1 . . . . 8 7 1 parse_system 8 | . . 2 . . . . . 2 1 . . . . . 2 1 find_recycling 1 | . . . . . . . . 1 . . . . . . . . map_route 1 | . . . . . . . . . . . . . . . 1 . find_shortcuts 1 | . . . . . . . . . . . . . . 1 . . overload_power 1 | . . . . . . . . . . . . . . 1 . . amplify_resonance 1 | . . . . . . . . . . . . . . . 1 . go_dormant 2 | . . . . . . . 1 . . . . . . . 1 . overwrite_iff 1 | . . . . . . . . . . . . . . 1 . . streamctrl_high 1 | . . . . . . . . 1 . . . . . . . . formatsys_low 1 | . . . . . . . . . . . . . . . 1 . formatsys_high 9 | . . . . . . . 2 1 . . . . . 5 1 . Relay Couplers Released 12 | . . . . . . . 3 . . . . . . 9 . . Machine Destruction 12 | . . . . . . . 3 . . . . . . 9 . . Attached 9 | . . . . . . . 3 . . . . . . 5 1 . Robots Rewired 7 | . . . . . . . . . . . . . . . . 7 Allies Hacked . | . . . . . . . . . . . . . . . . . Hacks Repelled . | . . . . . . . . . . . . . . . . . Allies | -11 -10 -10 -10 -9 -8 -7 -7 -7 -7 -7 -7 -6 -6 -6 -5 -5 -------- Run | Scr Mat Min Exi Min Mat Fac Gar Fac Low Low Dat Pro Fac Gar Fac Ext Total Allies 24 | . . . . . . . 2 5 . . . 1 . 6 2 8 Largest Group 5 | . . . . . . . 2 3 . . . 1 . 3 3 5 Highest-Rated Group 280 | . . . . . . . 53 93 . . . 94 . 99 68 280 Highest-Rated Ally 156 | . . . . . . . 32 31 . . . 94 . 47 32 156 Total Orders 3 | . . . . . . . . . . . . . . . 3 . RETURN 3 | . . . . . . . . . . . . . . . 3 . Ally Attacks 125 | . . . . . . . 6 3 . . . 4 . 21 9 82 Total Damage 2960 | . . . . . . . 219 63 . . . 140 . 431 166 1941 Kills 23 | . . . . . . . . . . . . 3 . 2 1 17 Allies Corrupted . | . . . . . . . . . . . . . . . . . Allies Melted . | . . . . . . . . . . . . . . . . . Intel | -11 -10 -10 -10 -9 -8 -7 -7 -7 -7 -7 -7 -6 -6 -6 -5 -5 ------- Run | Scr Mat Min Exi Min Mat Fac Gar Fac Low Low Dat Pro Fac Gar Fac Ext Robot Analysis Total . | . . . . . . . . . . . . . . . . . Derelict Logs Recovered 8 | . . 1 . . . . . . 3 2 . 2 . . . . Drone Launches 16 | . . . . . . . . . . . . 2 2 2 8 2 Drone Recoveries 3 | . . . . . . . . . . . . . . . 3 . Exploration | -11 -10 -10 -10 -9 -8 -7 -7 -7 -7 -7 -7 -6 -6 -6 -5 -5 ------------- Run | Scr Mat Min Exi Min Mat Fac Gar Fac Low Low Dat Pro Fac Gar Fac Ext Turns Passed 11023 | 66 106 232 335 182 901 571 184 1776 738 242 61 595 397 1238 1288 2111 Spaces Moved 12140 | 47 189 570 512 113 1065 536 216 2160 1287 414 121 1056 435 784 1179 1456 Core 332 | 20 . . . 8 . . . . . . . . . . 304 . Treads . | . . . . . . . . . . . . . . . . . Legs 2367 | 27 19 . . . . . . . . . . . 149 784 410 978 Wheels 517 | . . . . . . . . . . . . . . . 106 411 Hover 392 | . . . . . . . . . . . . . . . 325 67 Flight 8532 | . 170 570 512 105 1065 536 216 2160 1287 414 121 1056 286 . 34 . Fastest Speed 31 | 50 37 37 37 117 50 50 50 50 50 50 50 31 31 120 40 80 Average Speed 65 | 109 45 37 64 126 50 50 50 50 50 50 50 36 61 120 82 116 Slowest Speed 250 | 150 120 37 117 250 50 50 50 50 50 50 50 50 120 120 150 180 Overloaded Moves 4 | . . . . . . . . . . . . . . . 4 . Propulsion Burnouts . | . . . . . . . . . . . . . . . . . Robots Hopped 55 | . . 6 . . 28 2 2 12 4 . . . . . 1 . Cave-ins Triggered . | . . . . . . . . . . . . . . . . . Exploration Rate (%) 52 | 4 47 94 92 32 51 11 41 36 98 50 75 83 12 87 32 53 Regions Visited 16 Branch Regions 8 Pre-discovered Areas 3 | . . . . . . . . . . . 1 2 . . . . Known Exits Taken 13 | . 1 1 1 1 1 1 . 1 1 1 1 1 1 . 1 . Unknown Exits Taken 1 | 1 . . . . . . . . . . . . . . . . Scrap Searched 7 | . . 1 . . . . . . 2 2 . 2 . . . . Spaces Dug . | . . . . . . . . . . . . . . . . . Terrain Destroyed 213 | . . . . . . . . . 45 57 . 77 . 30 3 1 Melee . | . . . . . . . . . . . . . . . . . Projectile 7 | . . . . . . . . . 3 . . . . . 3 1 AOE 206 | . . . . . . . . . 42 57 . 77 . 30 . . Actions | -11 -10 -10 -10 -9 -8 -7 -7 -7 -7 -7 -7 -6 -6 -6 -5 -5 --------- Run | Scr Mat Min Exi Min Mat Fac Gar Fac Low Low Dat Pro Fac Gar Fac Ext Total 14840 | 61 211 581 515 140 1411 840 283 2839 1351 439 120 1250 566 1001 1448 1784 Wait 1868 | 1 3 10 . 4 318 282 28 613 34 20 . 158 87 62 134 114 Move 12018 | 46 188 557 511 112 1010 532 211 2136 1278 413 120 1055 435 782 1176 1456 Hop 52 | . . 6 . . 26 2 2 11 4 . . . . . 1 . Pick Up 171 | 10 7 1 1 3 31 10 4 23 4 1 . 2 18 12 21 23 Fast Attach 39 | . 1 1 . . 2 . 1 2 . . . 2 1 5 7 17 Attach 82 | 4 4 1 . 1 8 2 1 2 4 . . 10 4 2 22 17 Detach 7 | . 1 . . . 1 . . . . . . 1 . . 4 . Swap 64 | . . 1 1 2 . 3 4 14 3 . . 3 7 9 5 12 Drop 144 | . 7 1 2 2 15 9 4 24 1 1 . 8 12 19 17 22 Fire 242 | . . . . 15 . . 4 9 23 4 . 10 1 85 50 41 Melee 44 | . . 3 . . . . 4 4 . . . . . . . 33 Ram 3 | . . . . 1 . . . . . . . . . . 2 . Kick 2 | . . . . . . . . . . . . . . . 2 . Crush . | . . . . . . . . . . . . . . . . . Escape Stasis 38 | . . . . . . . 19 . . . . . . 19 . . Rewire 60 | . . . . . . . 1 1 . . . . . 5 5 48 Trap . | . . . . . . . . . . . . . . . . . Miscellaneous 6 | . . . . . . . . . . . . 1 1 1 2 1 Route ------- -11/Scrapyard -10/Materials (discovered 2 exits: *Mat / *Min) -10/Mines (discovered 3 exits: *Mat x2 / *Exi) -10/Exiles (discovered 2 exits: *Min x2) -9/Mines -8/Materials -7/Factory -7/Garrison -7/Factory -7/Lower Caves -7/Lower Caves (discovered 2 exits: *Fac / *Dat) -7/Data Miner -6/Proximity Caves -6/Factory (discovered 3 exits: Low x2 / Gar) -6/Garrison (discovered 3 exits: *Fac x3) -5/Factory (discovered 5 exits: *Fac / *Upp x2 / *Ext x2) -5/Extension History --------- Turn | Location | Event 6 | -11/Scrapyard | Discovered new exit (range 16) 67 | -11/Scrapyard | Entered Materials 92 | -10/Materials | Identified exit to Mines 115 | -10/Materials | Discovered new exit (range 16) 173 | -10/Materials | Entered Mines 180 | -10/Mines | Received a Rocket Launcher from a helpful Derelict 194 | -10/Mines | Met a Derelict who couldn't figure out how to use a Trap Extractor 264 | -10/Mines | Learned Materials terminal intel 299 | -10/Mines | Discovered new exit (range 10) 301 | -10/Mines | Build established: Mutant 302 | -10/Mines | Identified exit to Materials 340 | -10/Mines | Discovered exit to Materials (range 4) 404 | -10/Mines | Deemed a non-threat by the Exiles lab entrance 404 | -10/Mines | Discovered new exit (range 5) 405 | -10/Mines | Identified exit to Exiles 405 | -10/Mines | Entered Exiles 411 | -10/Exiles | Discovered new exit (range 14) 415 | -10/Exiles | Identified exit to Mines 423 | -10/Exiles | Met 8R-AWN 428 | -10/Exiles | Met EX-HEX 445 | -10/Exiles | Met EX-DEC 453 | -10/Exiles | Visited The Gauntlet 511 | -10/Exiles | Met EX-BIN 517 | -10/Exiles | Aligned with FarCom system 517 | -10/Exiles | Given EX-Vault access code 526 | -10/Exiles | Opened EX-Vault 532 | -10/Exiles | Found Flying Fortress v7 559 | -10/Exiles | Warned to stay clear of 0b10 Research branches 665 | -10/Exiles | Discovered exit to Mines (range 11) 740 | -10/Exiles | Left Exiles lab with Flying Fortress v7 740 | -10/Exiles | Entered Mines 770 | -9/Mines | Core integrity fell below 50% 871 | -9/Mines | Discovered new exit (range 9) 879 | -9/Mines | Identified exit to Materials 922 | -9/Mines | Entered Materials 922 | -8/Materials | Evolved 4 slots: Propulsion x2, Utility x2 923 | -8/Materials | Loaded intel: 12 terminal locations 1004 | -8/Materials | Repaired Datajack? 1045 | -8/Materials | Repaired Hrd. Medium Armor Plating? 1236 | -8/Materials | Repaired VTOL Module 1264 | -8/Materials | Repaired Med. Storage Unit? 1820 | -8/Materials | Discovered new exit (range 7) 1822 | -8/Materials | Identified exit to Factory 1823 | -8/Materials | Entered Factory 1823 | -7/Factory | Evolved 2 slots: Utility x2 2394 | -7/Factory | Identified exit to Garrison 2394 | -7/Factory | Entered Garrison 2397 | -7/Garrison | Installed Relay Interface Framework 2440 | -7/Garrison | Triggered checkpoint 2444 | -7/Garrison | Garrison Relay disabled 2524 | -7/Garrison | Triggered checkpoint 2560 | -7/Garrison | Triggered checkpoint 2575 | -7/Garrison | Discovered new exit (range 8) 2578 | -7/Garrison | Identified exit to Factory 2578 | -7/Garrison | Entered Factory 3580 | -7/Factory | Local fabrication network quarantined 3582 | -7/Factory | Fabricated Gauss Cannon? 3674 | -7/Factory | Repaired Hrd. Medium Armor Plating 4085 | -7/Factory | Discovered new exit (range 10) 4090 | -7/Factory | Identified exit to Lower Caves 4123 | -7/Factory | Found Prototype Launcher 4330 | -7/Factory | Allied Derelicts emerged from ambush trap array 4354 | -7/Factory | Entered Lower Caves 4367 | -7/Lower Caves | Learned 4 Factory zone layouts 4400 | -7/Lower Caves | Learned location of 1 exit from Proximity Caves 4400 | -7/Lower Caves | Learned 6 Upper Caves zone layouts 4400 | -7/Lower Caves | Learned Extension trap positions 4527 | -7/Lower Caves | Identified Rocket Array 4619 | -7/Lower Caves | Ambushed by wild Derelicts 4695 | -7/Lower Caves | Encountered a Warlord checkpoint 4698 | -7/Lower Caves | Learned Factory stockpile data 4756 | -7/Lower Caves | Spotted B-75 Beast 4813 | -7/Lower Caves | Discovered new exit (range 9) 4817 | -7/Lower Caves | Identified exit to Lower Caves 4828 | -7/Lower Caves | Learned Factory non-interactive machine intel 5092 | -7/Lower Caves | Entered another Lower Caves area 5201 | -7/Lower Caves | Discovered new exit (range 16) 5209 | -7/Lower Caves | Identified exit to Factory 5250 | -7/Lower Caves | Identified exit to Data Miner 5278 | -7/Lower Caves | Attracted the attention of an 0b10 outpost 5299 | -7/Lower Caves | Learned location of 1 exit from Proximity Caves 5306 | -7/Lower Caves | Destroyed 9 combat bots 5334 | -7/Lower Caves | Entered Data Miner 5334 | -7/Data Miner | Discovered new exit (range 7) 5337 | -7/Data Miner | Identified exit to Proximity Caves 5344 | -7/Data Miner | Met Data Miner 5364 | -7/Data Miner | Learned location of Section 7 (-3) 5364 | -7/Data Miner | Acquired the access code to Warlord's prototype stash 5368 | -7/Data Miner | Received God Mode back door access code from Data Miner 5395 | -7/Data Miner | Entered Proximity Caves 5426 | -6/Proximity Caves | Destroyed 7 combat bots 5546 | -6/Proximity Caves | Learned location of Armory (-3) 5547 | -6/Proximity Caves | Escorted by Enhanced Grunt 5556 | -6/Proximity Caves | Attracted the attention of an 0b10 base 5566 | -6/Proximity Caves | Core integrity fell below 50% 5595 | -6/Proximity Caves | Destroyed 10 combat bots 5599 | -6/Proximity Caves | Lost 3 parts (1n1u1w) 5742 | -6/Proximity Caves | Learned location of Zion (-6) 5789 | -6/Proximity Caves | Attracted the attention of an 0b10 checkpoint 5927 | -6/Proximity Caves | Build established: Sprinter 5990 | -6/Proximity Caves | Entered Factory 5990 | -6/Factory | Accompanied by 2 allies 5990 | -6/Factory | Evolved 2 slots: Utility x2 5991 | -6/Factory | Identified exit to Lower Caves 5994 | -6/Factory | Loaded intel: 254 non-interactive machine locations 6387 | -6/Factory | Identified exit to Garrison 6387 | -6/Factory | Entered Garrison 6387 | -6/Garrison | Accompanied by 2 allies 6418 | -6/Garrison | Triggered checkpoint 6438 | -6/Garrison | Garrison Relay disabled 6442 | -6/Garrison | Build established: Mutant 6490 | -6/Garrison | Triggered checkpoint 6490 | -6/Garrison | Triggered checkpoint 6742 | -6/Garrison | Build established: Bothacker-Mutant 6802 | -6/Garrison | Discovered new exit (range 10) 6812 | -6/Garrison | Identified exit to Factory 6834 | -6/Garrison | Triggered checkpoint 6864 | -6/Garrison | Garrison Relay disabled 6964 | -6/Garrison | Triggered checkpoint 7183 | -6/Garrison | Discovered exit to Factory (range 14) 7208 | -6/Garrison | Triggered checkpoint 7354 | -6/Garrison | Triggered checkpoint 7465 | -6/Garrison | Discovered exit to Factory (range 10) 7483 | -6/Garrison | Expanded RIF knowledge: Program Shield 7625 | -6/Garrison | Entered Factory 7625 | -5/Factory | Accompanied by 1 ally 7625 | -5/Factory | Evolved 2 slots: Utility x2 7626 | -5/Factory | Identified exit to Upper Caves 7822 | -5/Factory | Build established: Mutant 8156 | -5/Factory | Found Prototype Processor 8174 | -5/Factory | Identified Exp. Terrain Scan Processor 8269 | -5/Factory | Identified exit to Extension 8442 | -5/Factory | P-70 Sage assimilated allied Technician 6a 8447 | -5/Factory | P-70 Sage assimilated allied Administrator 6a 8579 | -5/Factory | System corruption reached 10% 8610 | -5/Factory | Discovered new exit (range 4) 8611 | -5/Factory | Identified exit to Factory 8641 | -5/Factory | Lost 16 parts (7n6u3w) 8691 | -5/Factory | Incoming investigation squad redirected 8702 | -5/Factory | Core integrity fell below 50% 8736 | -5/Factory | Lost 5 parts (4n1u) 8913 | -5/Factory | Entered Extension 8914 | -5/Extension | Loaded intel: 27 trap records 9096 | -5/Extension | Disrupted transfer network 9263 | -5/Extension | Rescued A7 9279 | -5/Extension | Lost 4 parts (1p1n1u1w) 9682 | -5/Extension | Build established: Scavenger-Assassin 9828 | -5/Extension | Spotted B-75 Beast 9989 | -5/Extension | Core integrity fell below 20% 10233 | -5/Extension | Build established: Scavenger-Mutant 10253 | -5/Extension | Extracted ID and sensor layout for unrecognized location from A7's data core 10681 | -5/Extension | Destroyed B-75 Beast 10708 | -5/Extension | Lost 5 parts (1p1n2u1w) 10732 | -5/Extension | Spotted B-75 Beast 10793 | -5/Extension | Lost 4 parts (2n1u1w) 11024 | -5/Extension | Destroyed by B-75 Beast with Heavy Machine Gun Last Messages --------------- U-05 Engineer builds a Wall. Carbon-fiber Leg destroyed. System corrupted: Component data lost. U-05 Engineer builds a Wall. Med. Reflective Plating destroyed. WNL43CF75PML=N>FVJCXBF0TSG2SA& U-05 Engineer lays Concrete. System corrupted: Matter fused (-8). System corrupted: Heat flow error (+138). System corrupted: Matter fused (-6). System corrupted: Substantial component data lost. System corrupted: Energy discharge (-422). SX/3X6DUYSB >DWUGR1JO W1F&Y System corrupted: Matter fused (-7). Acquired 41 matter. System corrupted: Component data lost. Sneak attack on R-10 Processor. R-10 Processor suffers critical hit. Destroyed Hpw. Tractor Beam. [Achievement: Achiever] Map ----- +----------------------------------------------------+ | #+##### #?????????????????????? | | + ^ #?????????????????????? | | # ^ #?????????????????????? | | [! # ^ #?????????????????????? | | !/ # ^ ##### #?????????????????????? | | # ^ #???# #?????????????????????? | | + ^ #???# #?????????????????????? | | #################### #???# #???????????^???^?????? | | ???????????????????# #???# #???????????^?????????? | | ???????????????????# #???# #?????????????????????? | | ?????????????????###+###?# #????????????^?^^?????? | | ?????????????????# ]#?# #?????????????????????? | | ?????????????????# #?# #?????????????????????? | | ?????????????????# #?# #?????????????????????? | | ?????????????????#] #?# #?????????????????????? | | ?????????????????# #?# #?????????????????????? | | ?????????????????# #? #?????????????????????? | | ?????????????????# [ #?# #?????????????????????? | | ?????????????????#######?# #?????????????????????? | | ???????????????????????### #??##??#??????????????? | | ???????????????????????#;# ### ## ###????????????? | | ???????????????????????# " "" ???????????? | | ###????????????????????# % " " ?????????? | | #????????????????????# #????????? | | # #???###??????????????#% % % #????????? | | #+###################### @ % #????????? | | % R u ????????? | | % u % ????????? | | w ?????????? | | ?????????? | | ??????????? | | ######################## BB ??????????? | | ??????####?????????????# BB ??????????? | | ???????????????????????# ???????????? | | ???????????????????????# ???????????? | | ???????????????????????# ????????????? | | ????????????????????????#####T#"""###????????????? | | ?????????????????????????????##??????????????????? | | ?????????????????????????????????????????????????? | | | | | | | | | | | | | | | | | | | | | | | +----------------------------------------------------+ Best States ------------- Heat Dissipation 54 Energy Generation 21 Energy Capacity 1850 Matter Stores 300 Matter Capacity 300 Sight Range 16 Robot Scan Range 22 Terrain Scan Density 85 Jamming Range 8 Additional Mass Support 9 EM Shielding 2 Armor Coverage 600 Resistance: TH 15 Resistance: EX 25 Utility Shielding 66 Weapon Shielding 33 Thermal Conversion 30 Evasion (%) 69 Targeting Accuracy 5 Item Schematics ----------------- Imp. Datajack | -8/Materials | Scanalyzed Lrg. Storage Unit | -8/Materials | Scanalyzed Component Analysis Suite | -7/Factory | Scanalyzed Cloaking Device | -7/Data Miner | Free Exp. ECM Suite | -7/Data Miner | Free Exp. Targeting Computer | -7/Data Miner | Free Exp. Terrain Scanner | -7/Data Miner | Free Cmb. Gravmag System | -7/Data Miner | Free Lgt. Regenerative Plating | -7/Data Miner | Free Combat Drone Bay | -7/Data Miner | Free Adv. Transmission Jammer | -5/Factory | Hacked Robot Schematics ------------------ H-55 Commando | -7/Factory | Downloaded I-36 Angel | -7/Data Miner | Free P-70 Sage | -7/Data Miner | Free H-66 Slayer | -7/Data Miner | Free L-41 Fighter | -7/Data Miner | Free G-67 Veteran | -7/Data Miner | Free G-50 Soldier | -7/Data Miner | Free S-27 Virus | -7/Data Miner | Free Fabricated ------------ Gauss Cannon | x2 | -7/Factory | Preloaded Alien Tech Used ----------------- None Achievements -------------- A New Friend Achiever Brute Force Error 47 GoHome() I'm Back, Baby! Knowing Is Half The Battle Prison Break Quick And Dirty The Oracle True Hacker Challenges ------------ None Game ------ Seed AssembledMeleeSink Manual? 0 Play Time 06:29:44 Cumulative 31.4 hours Start 2019.11.01 @ 01:22:06 End 2019.11.01 @ 19:37:14 Sessions 3 Manual Loads 0 Difficulty Rogue Special Mode None Game No. 11 Rogue 11 Adventurer 0 Explorer 0 Win Type - Total 0 Types 0/0/0/0/0/0/0 Lore% 19 Gallery% 29 Achievement% 25 Wizard Run 0 Options --------- ASCII 1 Keyboard 0 Movement Numpad Keybinds 0 Fullscreen 1 Font 12/Smallcaps Map View 83x54 Tactical HUD 0 Map Filters NONE Filters NONE Steam 1 RUN: 3651bd10-d1b5-4d44-9996-3c5aab30ebca